Workbook

Sheet Break_Even CIA
B4: Contribution Income Analysis
B6: Use this spreadsheet to prepare a contribution margin income statement. The contribution margin is found by subtracting all variable costs from revenue (sales). Shaded cells have formulas…careful! After you enter your numbers check the Break-Even Chart below.
B9: Price Per Unit | E9: $7.26
B10: Number of Units Sold | E10: 10000
B11: Total Sales | E11: =E9*E10 -> $72,600 | F11: =E11/$E$11 -> 100%
B12: Less: Variable Production Costs | E12: $31,040 | F12: =E12/$E$11 -> 43%
B13: Less: Variable Selling Costs | E13: $18,480 | F13: =E13/$E$11 -> 25%
B14: Total Variable Costs | E14: =IF(SUM(E12:E13),SUM(E12:E13),"") -> $49,520 | F14: =IF(SUM(F12:F13),SUM(F12:F13),"") -> 68% | G14: =$E$9*F14 -> $4.95 | H14: Per Unit
B15: Contribution Margin | E15: =IF(SUM(E11,E14),E11-E14,"") -> $23,080 | F15: =IF(SUM(F11,F14),F11-F14,"") -> 32%
B16: Less: Fixed Production Costs | E16: $13,050 | F16: =E16/$E$11 -> 18%
B17: Less: Fixed Selling and Administrative Costs | E17: $4,820 | F17: =E17/$E$11 -> 7%
B18: Total Fixed Costs | E18: =IF(SUM(E16:E17),SUM(E16:E17),"") -> $17,870 | F18: =IF(SUM(F16:F17),SUM(F16:F17),"") -> 25% | G18: =$E$9*F18 -> $1.79 | H18: Per Unit
B19: Income Before Taxes | E19: =IF(SUM(E18),E15-E18,"") -> $5,210 | F19: =IF(SUM(F18),F15-F18,"") -> 7% | G19: =$E$9*F19 -> $0.52 | H19: Per Unit
B22: Break-Even Analysis Chart
D44: Break-Even Point (units) = | E44: =((E46/(E48-E47))) -> 7,743 | H44: Break-Even Point ($'s) = | I44: =(E44*E48) -> $56,212
B46: Total Fixed Costs | D46: TFC = | E46: ='Break_Even CIA'!$E$18 -> $17,870 | H46: Formulas:
B47: Variable Cost per Unit | D47: VCU = | E47: ='Break_Even CIA'!$G$14 -> $4.95 | H47: BEP (units) = TFC/(SPU-VCU)
B48: Sales Price per Unit | D48: SPU = | E48: ='Break_Even CIA'!$E$9 -> $7.26 | H48: BEP ($'s) = BEP (units) * SPU
C53: Unit Increment x-axis | E53: 400
C55: Graph Data:
C56: Total
C57: Units | D57: TFC | E57: TVC | F57: TC | G57: Sales | H57: Profit
C58: 0 | D58: =$E$46 -> 17870 | E58: =(C58*$E$47) -> 0 | F58: =(D58+E58) -> 17870 | G58: =(C58*$E$48) -> 0 | H58: =(G58-F58) -> -17870
C59: =$E$53+C58 -> 400 | D59: 17870 | E59: 1980.8 | F59: 19850.8 | G59: 2904 | H59: -16946.8
C60: 800 | D60: 17870 | E60: 3961.6 | F60: 21831.6 | G60: 5808 | H60: -16023.6
C61: 1200 | D61: 17870 | E61: 5942.4 | F61: 23812.4 | G61: 8712 | H61: -15100.4
C62: 1600 | D62: 17870 | E62: 7923.2 | F62: 25793.2 | G62: 11616 | H62: -14177.2
C63: 2000 | D63: 17870 | E63: 9904 | F63: 27774 | G63: 14520 | H63: -13254
C64: 2400 | D64: 17870 | E64: 11884.8 | F64: 29754.8 | G64: 17424 | H64: -12330.8
C65: 2800 | D65: 17870 | E65: 13865.6 | F65: 31735.6 | G65: 20328 | H65: -11407.6
C66: 3200 | D66: 17870 | E66: 15846.4 | F66: 33716.4 | G66: 23232 | H66: -10484.4
C67: 3600 | D67: 17870 | E67: 17827.2 | F67: 35697.2 | G67: 26136 | H67: -9561.2
C68: 4000 | D68: 17870 | E68: 19808 | F68: 37678 | G68: 29040 | H68: -8638
C69: 4400 | D69: 17870 | E69: 21788.8 | F69: 39658.8 | G69: 31944 | H69: -7714.8
C70: 4800 | D70: 17870 | E70: 23769.6 | F70: 41639.6 | G70: 34848 | H70: -6791.6
C71: 5200 | D71: 17870 | E71: 25750.4 | F71: 43620.4 | G71: 37752 | H71: -5868.4
C72: 5600 | D72: 17870 | E72: 27731.2 | F72: 45601.2 | G72: 40656 | H72: -4945.2
C73: 6000 | D73: 17870 | E73: 29712 | F73: 47582 | G73: 43560 | H73: -4022
C74: 6400 | D74: 17870 | E74: 31692.8 | F74: 49562.8 | G74: 46464 | H74: -3098.8
C75: 6800 | D75: 17870 | E75: 33673.6 | F75: 51543.6 | G75: 49368 | H75: -2175.6
C76: 7200 | D76: 17870 | E76: 35654.4 | F76: 53524.4 | G76: 52272 | H76: -1252.4
C77: 7600 | D77: 17870 | E77: 37635.2 | F77: 55505.2 | G77: 55176 | H77: -329.2
C78: 8000 | D78: 17870 | E78: 39616 | F78: 57486 | G78: 58080 | H78: 594
C79: 8400 | D79: 17870 | E79: 41596.8 | F79: 59466.8 | G79: 60984 | H79: 1517.2
C80: 8800 | D80: 17870 | E80: 43577.6 | F80: 61447.6 | G80: 63888 | H80: 2440.4
C81: 9200 | D81: 17870 | E81: 45558.4 | F81: 63428.4 | G81: 66792 | H81: 3363.6
C82: 9600 | D82: 17870 | E82: 47539.2 | F82: 65409.2 | G82: 69696 | H82: 4286.8
C83: 10000 | D83: 17870 | E83: 49520 | F83: 67390 | G83: 72600 | H83: 5210
C84: 10400 | D84: 17870 | E84: 51500.8 | F84: 69370.8 | G84: 75504 | H84: 6133.2
C85: 10800 | D85: 17870 | E85: 53481.6 | F85: 71351.6 | G85: 78408 | H85: 7056.4
C86: 11200 | D86: 17870 | E86: 55462.4 | F86: 73332.4 | G86: 81312 | H86: 7979.6
